[Event "*** Titled Tuesday Blitz"]
[Site "Chess.com"]
[Date "2020.04.28"]
[Round "3"]
[White "obliviate12"]
[Black "Meri-Arabidze"]
[Result "0-1"]
[WhiteElo "2802"]
[BlackElo "2629"]
[TimeControl "180+1"]
[EndTime "10:31:41 PDT"]
[Termination "Meri-Arabidze won by resignation"]

1. e4 {[%clk 0:03:00.9]} 1... c5 {[%clk 0:02:59.3]} 2. Nf3 {[%clk 0:03:01.1]}
2... e6 {[%clk 0:02:59.6]} 3. d4 {[%clk 0:03:01]} 3... cxd4 {[%clk 0:03:00.5]}
4. Nxd4 {[%clk 0:03:01.9]} 4... Nc6 {[%clk 0:03:01.1]} 5. Nc3 {[%clk 0:03:01.7]}
5... a6 {[%clk 0:03:01.2]} 6. g3 {[%clk 0:02:57.8]} 6... d6 {[%clk 0:02:59]} 7.
Bg2 {[%clk 0:02:57.3]} 7... Bd7 {[%clk 0:02:59.3]} 8. O-O {[%clk 0:02:51.1]}
8... Nf6 {[%clk 0:02:59.3]} 9. Nde2 {[%clk 0:02:41.9]} 9... Be7 {[%clk
0:02:58.3]} 10. a4 {[%clk 0:02:41.2]} 10... O-O {[%clk 0:02:57.7]} 11. h3 {[%clk
0:02:40.1]} 11... Rc8 {[%clk 0:02:47.8]} 12. b3 {[%clk 0:02:34.3]} 12... Nb4
{[%clk 0:02:39.1]} 13. Ba3 {[%clk 0:02:34]} 13... d5 {[%clk 0:02:30.5]} 14. exd5
{[%clk 0:02:02.4]} 14... Nbxd5 {[%clk 0:02:27]} 15. Nxd5 {[%clk 0:01:59]} 15...
Nxd5 {[%clk 0:02:23.2]} 16. Bxe7 {[%clk 0:01:53.5]} 16... Qxe7 {[%clk
0:02:19.6]} 17. c4 {[%clk 0:01:53.6]} 17... Nb4 {[%clk 0:02:08]} 18. Bxb7 {[%clk
0:01:17.9]} 18... Rcd8 {[%clk 0:02:07.5]} 19. Bg2 {[%clk 0:01:14.9]} 19... Bxa4
{[%clk 0:02:03.7]} 20. Qb1 {[%clk 0:01:15]} 20... Bd7 {[%clk 0:01:57.1]} 21. Nd4
{[%clk 0:01:11.8]} 21... e5 {[%clk 0:01:47.6]} 22. Nf5 {[%clk 0:01:05.2]} 22...
Qc5 {[%clk 0:01:41.4]} 23. Ne3 {[%clk 0:00:57.6]} 23... Bc6 {[%clk 0:01:41]} 24.
Rd1 {[%clk 0:00:53.7]} 24... Bxg2 {[%clk 0:01:32.4]} 25. Kxg2 {[%clk 0:00:54.6]}
25... Qc6+ {[%clk 0:01:30.3]} 26. Kg1 {[%clk 0:00:53.1]} 26... Qf3 {[%clk
0:01:28.6]} 27. Qf5 {[%clk 0:00:42.8]} 27... e4 {[%clk 0:01:01.1]} 28. Qxf3
{[%clk 0:00:38.9]} 28... exf3 {[%clk 0:01:02]} 29. g4 {[%clk 0:00:32.2]} 29...
h6 {[%clk 0:00:56.6]} 30. Kh2 {[%clk 0:00:31.8]} 30... Rd3 {[%clk 0:00:48.7]}
31. Rxd3 {[%clk 0:00:26]} 31... Nxd3 {[%clk 0:00:49.6]} 32. Kg3 {[%clk
0:00:26.3]} 32... Rb8 {[%clk 0:00:47.3]} 33. Rxa6 {[%clk 0:00:25.7]} 33... Rxb3
{[%clk 0:00:46.2]} 34. Kxf3 {[%clk 0:00:23.7]} 34... Rb2 {[%clk 0:00:46]} 35.
Ke4 {[%clk 0:00:17.6]} 35... Nxf2+ {[%clk 0:00:45.5]} 36. Kd5 {[%clk 0:00:17.9]}
36... Nxh3 {[%clk 0:00:45.2]} 37. c5 {[%clk 0:00:17.6]} 37... Nf4+ {[%clk
0:00:45.1]} 38. Kc4 {[%clk 0:00:16.4]} 38... Ne6 {[%clk 0:00:42.7]} 39. c6
{[%clk 0:00:15.7]} 39... Re2 {[%clk 0:00:42.4]} 40. Ra8+ {[%clk 0:00:13.4]}
40... Kh7 {[%clk 0:00:41.2]} 41. Kd3 {[%clk 0:00:13.6]} 41... Re1 {[%clk
0:00:34.1]} 42. Ra7 {[%clk 0:00:13.8]} 42... Kg6 {[%clk 0:00:32.7]} 43. Kd2
{[%clk 0:00:10.5]} 43... Rg1 {[%clk 0:00:23.2]} 44. Ra6 {[%clk 0:00:09.8]} 44...
f6 {[%clk 0:00:20.1]} 45. Ra7 {[%clk 0:00:09.4]} 45... h5 {[%clk 0:00:17.4]} 46.
gxh5+ {[%clk 0:00:09]} 46... Kxh5 {[%clk 0:00:18.1]} 47. c7 {[%clk 0:00:09.9]}
47... Nxc7 {[%clk 0:00:17.7]} 48. Rxc7 {[%clk 0:00:10.8]} 48... g5 {[%clk
0:00:17.5]} 49. Ke2 {[%clk 0:00:11.7]} 49... Kg6 {[%clk 0:00:16.7]} 50. Kf3
{[%clk 0:00:11]} 50... Ra1 {[%clk 0:00:16.2]} 51. Rc6 {[%clk 0:00:10.4]} 51...
Ra3 {[%clk 0:00:14.9]} 52. Rb6 {[%clk 0:00:08.8]} 52... Rc3 {[%clk 0:00:14.8]}
53. Ke4 {[%clk 0:00:08.7]} 53... Ra3 {[%clk 0:00:12.3]} 54. Nd5 {[%clk 0:00:09]}
54... Ra4+ {[%clk 0:00:10.6]} 55. Ke3 {[%clk 0:00:09]} 55... Ra3+ {[%clk
0:00:10.3]} 56. Kd4 {[%clk 0:00:09.1]} 56... Rf3 {[%clk 0:00:09.8]} 57. Ke4
{[%clk 0:00:08.8]} 57... Rf1 {[%clk 0:00:10]} 58. Ne7+ {[%clk 0:00:08.9]} 58...
Kh5 {[%clk 0:00:09.5]} 59. Nd5 {[%clk 0:00:08.9]} 59... Kg6 {[%clk 0:00:09.1]}
60. Ne3 {[%clk 0:00:08.9]} 60... Rf4+ {[%clk 0:00:08.8]} 61. Kd3 {[%clk
0:00:08.9]} 61... Rf3 {[%clk 0:00:09.1]} 62. Ke2 {[%clk 0:00:09]} 62... Rf4
{[%clk 0:00:08.6]} 63. Rc6 {[%clk 0:00:09.4]} 63... g4 {[%clk 0:00:05.1]} 64.
Rc5 {[%clk 0:00:08]} 64... f5 {[%clk 0:00:04.8]} 65. Rc8 {[%clk 0:00:07.2]}
65... Kg5 {[%clk 0:00:04.9]} 66. Rg8+ {[%clk 0:00:06.6]} 66... Kh6 {[%clk
0:00:05]} 67. Kd3 {[%clk 0:00:04.8]} 67... Rf3 {[%clk 0:00:04.9]} 68. Ke2 {[%clk
0:00:05.1]} 68... Kh5 {[%clk 0:00:04.2]} 69. Rf8 {[%clk 0:00:05.1]} 69... Kg5
{[%clk 0:00:04.5]} 70. Nd5 {[%clk 0:00:04.8]} 70... Kh4 {[%clk 0:00:04.3]} 71.
Ne3 {[%clk 0:00:04]} 71... Kg5 {[%clk 0:00:04.3]} 72. Rg8+ {[%clk 0:00:03.7]}
72... Kh4 {[%clk 0:00:04.1]} 73. Ng2+ {[%clk 0:00:04.4]} 73... Kg3 {[%clk
0:00:04.2]} 74. Ne3 {[%clk 0:00:05.3]} 74... Rf2+ {[%clk 0:00:04.6]} 75. Kd3
{[%clk 0:00:05.6]} 75... Rf3 {[%clk 0:00:05]} 76. Rf8 {[%clk 0:00:05.4]} 76...
f4 {[%clk 0:00:04.8]} 77. Rxf4 {[%clk 0:00:03.7]} 77... Kxf4 {[%clk 0:00:04.5]}
0-1

[Event "*** Titled Tuesday Blitz"]
[Site "Chess.com"]
[Date "2020.04.28"]
[Round "3"]
[White "KhamzinOlzhas"]
[Black "dpopadic"]
[Result "1/2-1/2"]
[WhiteElo "2513"]
[BlackElo "2327"]
[TimeControl "180+1"]
[EndTime "10:32:08 PDT"]
[Termination "Game drawn - insufficient material"]

1. e4 {[%clk 0:03:00.9]} 1... c5 {[%clk 0:02:59.6]} 2. Nc3 {[%clk 0:03:01.1]}
2... Nc6 {[%clk 0:02:59.6]} 3. g3 {[%clk 0:03:01.4]} 3... g6 {[%clk 0:02:59]} 4.
Bg2 {[%clk 0:03:01.8]} 4... Bg7 {[%clk 0:02:59]} 5. d3 {[%clk 0:03:02.2]} 5...
d6 {[%clk 0:02:59.1]} 6. Be3 {[%clk 0:03:02.4]} 6... Rb8 {[%clk 0:02:59]} 7.
Nge2 {[%clk 0:02:59.3]} 7... b5 {[%clk 0:02:58.9]} 8. Qd2 {[%clk 0:02:50.2]}
8... Nd4 {[%clk 0:02:57.8]} 9. O-O {[%clk 0:02:47.6]} 9... Bd7 {[%clk
0:02:57.1]} 10. Nc1 {[%clk 0:02:39.5]} 10... e6 {[%clk 0:02:54.9]} 11. Nd1
{[%clk 0:02:39.1]} 11... b4 {[%clk 0:02:49.2]} 12. c3 {[%clk 0:02:37.6]} 12...
bxc3 {[%clk 0:02:48.7]} 13. bxc3 {[%clk 0:02:38.5]} 13... Nc6 {[%clk 0:02:48.3]}
14. d4 {[%clk 0:02:37]} 14... cxd4 {[%clk 0:02:45.7]} 15. cxd4 {[%clk
0:02:37.9]} 15... Nge7 {[%clk 0:02:40.8]} 16. Ne2 {[%clk 0:02:21.4]} 16... O-O
{[%clk 0:02:34.7]} 17. f4 {[%clk 0:02:12.5]} 17... d5 {[%clk 0:02:34.2]} 18. e5
{[%clk 0:02:12]} 18... Nf5 {[%clk 0:02:33.2]} 19. Bf2 {[%clk 0:02:06.9]} 19...
h5 {[%clk 0:02:32.6]} 20. h3 {[%clk 0:02:02.7]} 20... Qb6 {[%clk 0:02:19.4]} 21.
g4 {[%clk 0:01:58.9]} 21... hxg4 {[%clk 0:02:19.3]} 22. hxg4 {[%clk 0:01:59.8]}
22... Nh6 {[%clk 0:02:19.5]} 23. Ne3 {[%clk 0:01:58.2]} 23... Qb4 {[%clk
0:02:10.3]} 24. Rfd1 {[%clk 0:01:53]} 24... Qxd2 {[%clk 0:02:09.1]} 25. Rxd2
{[%clk 0:01:53.9]} 25... Na5 {[%clk 0:02:07.2]} 26. Rc2 {[%clk 0:01:47.4]} 26...
Rfc8 {[%clk 0:01:59.1]} 27. Rac1 {[%clk 0:01:43.6]} 27... Rxc2 {[%clk
0:01:58.6]} 28. Rxc2 {[%clk 0:01:44.5]} 28... Rc8 {[%clk 0:01:54]} 29. Rxc8+
{[%clk 0:01:01.4]} 29... Bxc8 {[%clk 0:01:53.7]} 30. Bf3 {[%clk 0:00:49.7]}
30... Ba6 {[%clk 0:01:52.9]} 31. Nc3 {[%clk 0:00:40.2]} 31... Nc6 {[%clk
0:01:48.8]} 32. Nc2 {[%clk 0:00:31.3]} 32... Bf8 {[%clk 0:01:40.5]} 33. Be3
{[%clk 0:00:08.3]} 33... Bd3 {[%clk 0:01:35.3]} 34. Ne1 {[%clk 0:00:07.3]} 34...
Bc4 {[%clk 0:01:33.8]} 35. Nc2 {[%clk 0:00:05.3]} 35... Nb4 {[%clk 0:01:28.1]}
36. Na3 {[%clk 0:00:03.3]} 36... Nxa2 {[%clk 0:01:12.1]} 37. Nxc4 {[%clk
0:00:03.2]} 37... Nxc3 {[%clk 0:01:10.5]} 38. Na5 {[%clk 0:00:04.1]} 38... Kh7
{[%clk 0:00:58]} 39. Nc6 {[%clk 0:00:04.5]} 39... a6 {[%clk 0:00:54]} 40. Kf2
{[%clk 0:00:04.6]} 40... Nb5 {[%clk 0:00:50.3]} 41. Bd2 {[%clk 0:00:04.1]} 41...
Ng8 {[%clk 0:00:49]} 42. Ke3 {[%clk 0:00:04.4]} 42... Ne7 {[%clk 0:00:48.7]} 43.
Nb8 {[%clk 0:00:04.6]} 43... Na3 {[%clk 0:00:36.9]} 44. Be2 {[%clk 0:00:03.7]}
44... Nc8 {[%clk 0:00:29.8]} 45. Bxa6 {[%clk 0:00:02.2]} 45... Nb6 {[%clk
0:00:29.1]} 46. Kd3 {[%clk 0:00:02.4]} 46... Nac4 {[%clk 0:00:28.3]} 47. Be1
{[%clk 0:00:03]} 47... Be7 {[%clk 0:00:27]} 48. Bc3 {[%clk 0:00:03.5]} 48... Ba3
{[%clk 0:00:24.8]} 49. Kc2 {[%clk 0:00:02.4]} 49... Bf8 {[%clk 0:00:22.9]} 50.
Nc6 {[%clk 0:00:02.2]} 50... Bh6 {[%clk 0:00:22.3]} 51. g5 {[%clk 0:00:02.9]}
51... Bf8 {[%clk 0:00:22]} 52. Nd8 {[%clk 0:00:03.4]} 52... Kg8 {[%clk
0:00:20.9]} 53. Nc6 {[%clk 0:00:03.4]} 53... Ne3+ {[%clk 0:00:20.6]} 54. Kd3
{[%clk 0:00:03.4]} 54... Nf5 {[%clk 0:00:20.2]} 55. Bd2 {[%clk 0:00:04]} 55...
Nd7 {[%clk 0:00:19.5]} 56. Nd8 {[%clk 0:00:03.9]} 56... Nb6 {[%clk 0:00:17.4]}
57. Nc6 {[%clk 0:00:04.3]} 57... Na4 {[%clk 0:00:17]} 58. Bb5 {[%clk 0:00:04.6]}
58... Nb6 {[%clk 0:00:16.7]} 59. Na7 {[%clk 0:00:04.3]} 59... Ng3 {[%clk
0:00:15.4]} 60. Nc6 {[%clk 0:00:04.4]} 60... Ne4 {[%clk 0:00:15.4]} 61. Be3
{[%clk 0:00:05]} 61... Nc8 {[%clk 0:00:13.8]} 62. Na5 {[%clk 0:00:05.5]} 62...
Nb6 {[%clk 0:00:13.8]} 63. Nb3 {[%clk 0:00:06]} 63... Na8 {[%clk 0:00:13]} 64.
Nc5 {[%clk 0:00:06.6]} 64... Nc7 {[%clk 0:00:12.7]} 65. Nxe4 {[%clk 0:00:06.5]}
65... dxe4+ {[%clk 0:00:11.9]} 66. Kc4 {[%clk 0:00:07.4]} 66... Nxb5 {[%clk
0:00:11.9]} 67. Kxb5 {[%clk 0:00:07.5]} 67... Ba3 {[%clk 0:00:11.6]} 68. Kc4
{[%clk 0:00:07.6]} 68... Bb2 {[%clk 0:00:10.7]} 69. d5 {[%clk 0:00:08]} 69...
exd5+ {[%clk 0:00:10.2]} 70. Kxd5 {[%clk 0:00:08.9]} 70... Kf8 {[%clk 0:00:10]}
71. e6 {[%clk 0:00:07.9]} 71... fxe6+ {[%clk 0:00:09.5]} 72. Kxe6 {[%clk
0:00:08.8]} 72... Kg7 {[%clk 0:00:09]} 73. Kd5 {[%clk 0:00:08.1]} 73... Kf7
{[%clk 0:00:08.9]} 74. Kxe4 {[%clk 0:00:09]} 74... Bc3 {[%clk 0:00:08.3]} 75.
Bd4 {[%clk 0:00:09.9]} 75... Bd2 {[%clk 0:00:08]} 76. Ke5 {[%clk 0:00:07.5]}
76... Bc1 {[%clk 0:00:07.6]} 77. Bc3 {[%clk 0:00:07.4]} 77... Be3 {[%clk
0:00:07.1]} 78. Bb2 {[%clk 0:00:07.2]} 78... Bd2 {[%clk 0:00:07.1]} 79. Ba1
{[%clk 0:00:06.3]} 79... Be3 {[%clk 0:00:07.1]} 80. Bc3 {[%clk 0:00:06.3]} 80...
Bc1 {[%clk 0:00:07.1]} 81. Ke4 {[%clk 0:00:03.6]} 81... Ba3 {[%clk 0:00:06.2]}
82. f5 {[%clk 0:00:03.3]} 82... gxf5+ {[%clk 0:00:05.5]} 83. Kxf5 {[%clk
0:00:04.2]} 83... Be7 {[%clk 0:00:04.9]} 84. g6+ {[%clk 0:00:05.1]} 84... Kg8
{[%clk 0:00:05.1]} 85. Be5 {[%clk 0:00:04.1]} 85... Bb4 {[%clk 0:00:05]} 86. Ke6
{[%clk 0:00:04.3]} 86... Ba3 {[%clk 0:00:05.1]} 87. Kf5 {[%clk 0:00:04.6]} 87...
Bb4 {[%clk 0:00:05.1]} 88. Kg4 {[%clk 0:00:05]} 88... Ba3 {[%clk 0:00:05.3]} 89.
Bf6 {[%clk 0:00:05.5]} 89... Bb4 {[%clk 0:00:05]} 90. Kf5 {[%clk 0:00:06.1]}
90... Ba3 {[%clk 0:00:05.3]} 91. Bc3 {[%clk 0:00:06.5]} 91... Bc5 {[%clk
0:00:05.2]} 92. Bb2 {[%clk 0:00:07.1]} 92... Bb4 {[%clk 0:00:05.2]} 93. Ke6
{[%clk 0:00:07.4]} 93... Bc5 {[%clk 0:00:05.3]} 94. Kd5 {[%clk 0:00:06.6]} 94...
Bb4 {[%clk 0:00:05.5]} 95. Bd4 {[%clk 0:00:06.4]} 95... Ba3 {[%clk 0:00:05.4]}
96. Bc3 {[%clk 0:00:06.9]} 96... Bf8 {[%clk 0:00:05]} 97. Ke6 {[%clk 0:00:06.9]}
97... Ba3 {[%clk 0:00:04.6]} 98. Bd4 {[%clk 0:00:06.6]} 98... Bc1 {[%clk
0:00:05.1]} 99. g7 {[%clk 0:00:06.5]} 99... Bh6 {[%clk 0:00:04.3]} 100. Bf6
{[%clk 0:00:06]} 100... Bxg7 {[%clk 0:00:04.7]} 1/2-1/2

[Event "*** Titled Tuesday Blitz"]
[Site "Chess.com"]
[Date "2020.04.28"]
[Round "3"]
[White "saikrishnaReturns"]
[Black "okriak"]
[Result "1-0"]
[WhiteElo "2645"]
[BlackElo "2833"]
[TimeControl "180+1"]
[EndTime "10:32:15 PDT"]
[Termination "saikrishnaReturns won by checkmate"]

1. e4 {[%clk 0:03:00.9]} 1... e5 {[%clk 0:02:59.7]} 2. Nf3 {[%clk 0:03:00.3]}
2... Nc6 {[%clk 0:03:00.4]} 3. Bb5 {[%clk 0:02:59.4]} 3... a6 {[%clk 0:03:00.3]}
4. Ba4 {[%clk 0:02:59.6]} 4... Nf6 {[%clk 0:03:00.3]} 5. O-O {[%clk 0:03:00.2]}
5... Be7 {[%clk 0:03:00.6]} 6. Re1 {[%clk 0:03:00.8]} 6... b5 {[%clk 0:03:00.7]}
7. Bb3 {[%clk 0:03:01.5]} 7... d6 {[%clk 0:03:01]} 8. c3 {[%clk 0:03:01.9]} 8...
O-O {[%clk 0:03:01.1]} 9. h3 {[%clk 0:03:02.1]} 9... Nb8 {[%clk 0:03:01.3]} 10.
d4 {[%clk 0:03:02.1]} 10... Nbd7 {[%clk 0:03:01.8]} 11. Nbd2 {[%clk 0:03:02.8]}
11... Bb7 {[%clk 0:03:01.4]} 12. Bc2 {[%clk 0:03:00.7]} 12... Re8 {[%clk
0:03:01.2]} 13. Nf1 {[%clk 0:03:00.5]} 13... Bf8 {[%clk 0:03:01.2]} 14. Ng3
{[%clk 0:03:00]} 14... g6 {[%clk 0:03:01.2]} 15. a4 {[%clk 0:02:59.1]} 15... c5
{[%clk 0:03:00.5]} 16. d5 {[%clk 0:02:59.1]} 16... c4 {[%clk 0:03:00.6]} 17. Nh2
{[%clk 0:02:57.2]} 17... Bg7 {[%clk 0:02:55.5]} 18. Ng4 {[%clk 0:02:43.1]} 18...
Nxg4 {[%clk 0:02:55.1]} 19. hxg4 {[%clk 0:02:41.8]} 19... Bf6 {[%clk 0:02:54.4]}
20. f4 {[%clk 0:02:35.7]} 20... exf4 {[%clk 0:02:52.9]} 21. Bxf4 {[%clk
0:02:36.6]} 21... Ne5 {[%clk 0:02:51.6]} 22. Rf1 {[%clk 0:02:28.1]} 22... Bg5
{[%clk 0:02:50.2]} 23. Qd2 {[%clk 0:02:21.3]} 23... Bxf4 {[%clk 0:02:49.9]} 24.
Qxf4 {[%clk 0:02:22.2]} 24... Qh4 {[%clk 0:02:48.9]} 25. g5 {[%clk 0:02:18.5]}
25... Qxf4 {[%clk 0:02:44.3]} 26. Rxf4 {[%clk 0:02:19.4]} 26... Kg7 {[%clk
0:02:44]} 27. Rf6 {[%clk 0:02:15]} 27... Red8 {[%clk 0:02:43.9]} 28. Ne2 {[%clk
0:02:07.6]} 28... h6 {[%clk 0:02:40.5]} 29. Nd4 {[%clk 0:01:58.5]} 29... hxg5
{[%clk 0:02:40.1]} 30. Rff1 {[%clk 0:01:56.8]} 30... bxa4 {[%clk 0:02:25.6]} 31.
Rxa4 {[%clk 0:01:54.1]} 31... Rdb8 {[%clk 0:02:23.1]} 32. Rfa1 {[%clk
0:01:38.5]} 32... Bc8 {[%clk 0:02:22.6]} 33. R1a2 {[%clk 0:01:37]} 33... Rb6
{[%clk 0:02:22.2]} 34. Rb4 {[%clk 0:01:19.5]} 34... Rxb4 {[%clk 0:02:17.7]} 35.
cxb4 {[%clk 0:01:20.4]} 35... Rb8 {[%clk 0:02:18.1]} 36. Ra4 {[%clk 0:01:20.5]}
36... Rb6 {[%clk 0:02:16.4]} 37. Kf2 {[%clk 0:01:15.5]} 37... Bd7 {[%clk
0:02:15.6]} 38. Ra5 {[%clk 0:01:13.7]} 38... Kf6 {[%clk 0:02:08.6]} 39. Ke3
{[%clk 0:01:12.3]} 39... Ke7 {[%clk 0:02:01.1]} 40. Kd2 {[%clk 0:01:09.7]} 40...
Rxb4 {[%clk 0:02:01]} 41. Rxa6 {[%clk 0:01:08.3]} 41... Rxb2 {[%clk 0:02:00.8]}
42. Ra7 {[%clk 0:01:08.4]} 42... Kd8 {[%clk 0:01:52.1]} 43. Kc3 {[%clk
0:00:53.7]} 43... Rb6 {[%clk 0:01:48.3]} 44. Nf3 {[%clk 0:00:48.9]} 44... f6
{[%clk 0:01:40.6]} 45. Nxe5 {[%clk 0:00:44.8]} 45... fxe5 {[%clk 0:01:40.4]} 46.
Kxc4 {[%clk 0:00:44.1]} 46... g4 {[%clk 0:01:36.1]} 47. g3 {[%clk 0:00:36.6]}
47... g5 {[%clk 0:01:32.2]} 48. Ra8+ {[%clk 0:00:32.7]} 48... Ke7 {[%clk
0:01:28.6]} 49. Rg8 {[%clk 0:00:33.2]} 49... Kf6 {[%clk 0:01:26.4]} 50. Rd8
{[%clk 0:00:33.3]} 50... Bb5+ {[%clk 0:01:25.5]} 51. Kc3 {[%clk 0:00:32.3]}
51... Be2 {[%clk 0:01:24.1]} 52. Ba4 {[%clk 0:00:29.2]} 52... Bf3 {[%clk
0:01:20.3]} 53. Bc6 {[%clk 0:00:29]} 53... Bxe4 {[%clk 0:01:20.3]} 54. Rxd6+
{[%clk 0:00:29.1]} 54... Kf7 {[%clk 0:01:16.5]} 55. Be8+ {[%clk 0:00:28.3]}
55... Kxe8 {[%clk 0:01:15.3]} 56. Rxb6 {[%clk 0:00:29.2]} 56... Bxd5 {[%clk
0:01:12.7]} 57. Rb5 {[%clk 0:00:29.5]} 57... Bf3 {[%clk 0:01:08.2]} 58. Rxe5+
{[%clk 0:00:30.4]} 58... Kf7 {[%clk 0:01:08.6]} 59. Rxg5 {[%clk 0:00:29.9]}
59... Kf6 {[%clk 0:01:09.1]} 60. Rc5 {[%clk 0:00:29.7]} 60... Bd1 {[%clk
0:01:08.4]} 61. Kd4 {[%clk 0:00:30.6]} 61... Bf3 {[%clk 0:01:08.3]} 62. Ke3
{[%clk 0:00:31.5]} 62... Bd1 {[%clk 0:01:04.4]} 63. Kf4 {[%clk 0:00:32.4]} 63...
Be2 {[%clk 0:00:59.7]} 64. Rc6+ {[%clk 0:00:30.5]} 64... Kf7 {[%clk 0:00:57]}
65. Kf5 {[%clk 0:00:24.3]} 65... Kg7 {[%clk 0:00:57]} 66. Rc7+ {[%clk
0:00:23.3]} 66... Kh6 {[%clk 0:00:56.8]} 67. Kf6 {[%clk 0:00:22.8]} 67... Bf3
{[%clk 0:00:50.4]} 68. Ra7 {[%clk 0:00:18.7]} 68... Bd1 {[%clk 0:00:45.6]} 69.
Ra1 {[%clk 0:00:18.3]} 69... Bf3 {[%clk 0:00:45.6]} 70. Ra2 {[%clk 0:00:18.8]}
70... Kh7 {[%clk 0:00:45.2]} 71. Rh2+ {[%clk 0:00:18.7]} 71... Kg8 {[%clk
0:00:44.9]} 72. Rh6 {[%clk 0:00:18.6]} 72... Be2 {[%clk 0:00:44.3]} 73. Rg6+
{[%clk 0:00:17.6]} 73... Kf8 {[%clk 0:00:43.6]} 74. Kg5 {[%clk 0:00:12.6]} 74...
Kf7 {[%clk 0:00:42.2]} 75. Rf6+ {[%clk 0:00:12.1]} 75... Kg7 {[%clk 0:00:40.5]}
76. Re6 {[%clk 0:00:12.4]} 76... Bd1 {[%clk 0:00:36.4]} 77. Re7+ {[%clk
0:00:12.6]} 77... Kf8 {[%clk 0:00:36.8]} 78. Kf6 {[%clk 0:00:12.8]} 78... Kg8
{[%clk 0:00:37.1]} 79. Kg6 {[%clk 0:00:11.2]} 79... Bc2+ {[%clk 0:00:36.7]} 80.
Kh6 {[%clk 0:00:11]} 80... Kf8 {[%clk 0:00:36.8]} 81. Rg7 {[%clk 0:00:11.2]}
81... Bd1 {[%clk 0:00:36.2]} 82. Kg6 {[%clk 0:00:11.6]} 82... Bf3 {[%clk
0:00:33.2]} 83. Kf6 {[%clk 0:00:11.8]} 83... Ke8 {[%clk 0:00:33.3]} 84. Kf5
{[%clk 0:00:09.5]} 84... Kf8 {[%clk 0:00:31.2]} 85. Rxg4 {[%clk 0:00:09.8]}
85... Bd1 {[%clk 0:00:31.1]} 86. Rg5 {[%clk 0:00:09.1]} 86... Kf7 {[%clk
0:00:30.7]} 87. Kf4 {[%clk 0:00:07.8]} 87... Bc2 {[%clk 0:00:30.3]} 88. Ra5
{[%clk 0:00:08.7]} 88... Kg6 {[%clk 0:00:29.1]} 89. g4 {[%clk 0:00:09.5]} 89...
Bd3 {[%clk 0:00:28.6]} 90. Rd5 {[%clk 0:00:09.7]} 90... Bc2 {[%clk 0:00:28.1]}
91. Rd6+ {[%clk 0:00:10.6]} 91... Kf7 {[%clk 0:00:27.8]} 92. Kg5 {[%clk
0:00:11.1]} 92... Bb1 {[%clk 0:00:27]} 93. Kh6 {[%clk 0:00:11]} 93... Bc2 {[%clk
0:00:26.6]} 94. g5 {[%clk 0:00:11.3]} 94... Be4 {[%clk 0:00:26.6]} 95. g6+
{[%clk 0:00:11.3]} 95... Ke7 {[%clk 0:00:26.1]} 96. Rb6 {[%clk 0:00:11.3]} 96...
Bd5 {[%clk 0:00:26]} 97. g7 {[%clk 0:00:11.4]} 97... Kd7 {[%clk 0:00:25.9]} 98.
Rb8 {[%clk 0:00:11.1]} 98... Kc7 {[%clk 0:00:26]} 99. g8=Q {[%clk 0:00:11.3]}
99... Bxg8 {[%clk 0:00:26.2]} 100. Rxg8 {[%clk 0:00:12.1]} 100... Kd6 {[%clk
0:00:26.7]} 101. Kg7 {[%clk 0:00:13]} 101... Ke5 {[%clk 0:00:26.9]} 102. Rf8
{[%clk 0:00:13.9]} 102... Ke6 {[%clk 0:00:27]} 103. Rf6+ {[%clk 0:00:14.8]}
103... Ke5 {[%clk 0:00:27.2]} 104. Kg6 {[%clk 0:00:15.1]} 104... Kd5 {[%clk
0:00:27.6]} 105. Kf5 {[%clk 0:00:14.7]} 105... Kd4 {[%clk 0:00:27.6]} 106. Re6
{[%clk 0:00:14.8]} 106... Kd5 {[%clk 0:00:27.7]} 107. Re5+ {[%clk 0:00:14.2]}
107... Kd6 {[%clk 0:00:28]} 108. Ke4 {[%clk 0:00:14.2]} 108... Kc6 {[%clk
0:00:28.2]} 109. Rd5 {[%clk 0:00:14.5]} 109... Kc7 {[%clk 0:00:28.1]} 110. Ke5
{[%clk 0:00:13.9]} 110... Kc6 {[%clk 0:00:28.5]} 111. Ke6 {[%clk 0:00:14.4]}
111... Kb6 {[%clk 0:00:28.6]} 112. Kd6 {[%clk 0:00:14.3]} 112... Kb7 {[%clk
0:00:28.9]} 113. Rc5 {[%clk 0:00:14.7]} 113... Kb6 {[%clk 0:00:28.9]} 114. Kd5
{[%clk 0:00:15]} 114... Kb7 {[%clk 0:00:29.1]} 115. Rc6 {[%clk 0:00:15.2]}
115... Ka7 {[%clk 0:00:29.6]} 116. Kc5 {[%clk 0:00:15.5]} 116... Kb7 {[%clk
0:00:30]} 117. Kb5 {[%clk 0:00:15.6]} 117... Ka8 {[%clk 0:00:29.9]} 118. Kb6
{[%clk 0:00:15.7]} 118... Kb8 {[%clk 0:00:30.2]} 119. Rc5 {[%clk 0:00:16.5]}
119... Ka8 {[%clk 0:00:30.5]} 120. Rc8# {[%clk 0:00:17.4]} 1-0